bitfinex-derivatives/quotes_SOLF0:USTF0_20251024
["timestamp","ask_amount","ask_price","bid_price","bid_amount"]
[1761348306225,66.9321,193.44,193.41,4.82511351]
[1761348306427,66.9321,193.44,193.42,4.82511351]
[1761348306629,66.9321,193.44,193.4,2.85]
[1761348306831,66.9321,193.44,193.41,4.82520237]
[1761348307026,66.9321,193.44,193.42,4.82520237]
[1761348307225,66.9321,193.44,193.4,2.85]
[1761348307420,66.9321,193.44,193.41,4.82527598]
[1761348307624,66.9321,193.44,193.42,4.82527598]
[1761348307918,66.9321,193.44,193.4,2.85]
[1761348308118,66.9321,193.44,193.41,4.82535634]
[1761348308323,66.9321,193.44,193.42,4.82535634]
[1761348308529,66.9321,193.44,193.43,4.82535634]
[1761348330748,62.28,193.44,193.43,4.82535634]
[1761348340758,67.07119875,193.44,193.36,4.81897695]
[1761348341062,67.07119875,193.44,193.35,7.42897695]
[1761348341063,4.79119875,193.43,193.35,7.42897695]
[1761348341264,4.79119875,193.43,193.35,2.61]
[1761348342057,4.6524,193.42,193.35,2.61]
[1761348342256,62.26,193.41,193.35,2.61]
[1761348349879,62.26,193.41,193.36,2.61]
[1761348354581,170.93287722,193.45,193.37,2.61]
[1761348354781,4.79119875,193.5,193.4,2.61]
[1761348355082,4.79119875,193.5,193.39,4.81897695]
[1761348355083,62.26,193.5,193.42,2.61]
[1761348357583,66.9107,193.5,193.42,2.61]
[1761348360373,4.6509,193.49,193.42,2.61]
[1761348390699,4.6509,193.49,193.43,2.63]
[1761348395803,4.6509,193.49,193.44,2.63]
[1761348398205,4.6509,193.49,193.45,2.63]
[1761348399209,4.6509,193.49,193.45,7.4536656]
[1761348405316,4.6509,193.49,193.46,2.63]
[1761348405821,66.8903,193.51,193.46,2.63]
[1761348406021,62.24,193.51,193.46,2.63]
[1761348406212,62.24,193.51,193.45,4.8236656]
[1761348407029,4.6507,193.5,193.46,2.63]
[1761348411120,4.6509,193.49,193.44,4.8236656]
[1761348411326,4.6509,193.49,193.43,4.8236656]
[1761348413330,4.6509,193.49,193.42,7.4536656]
[1761348417133,4.6509,193.49,193.43,2.63]
[1761348424740,66.8909,193.49,193.44,2.77]
[1761348426730,66.8909,193.49,193.43,4.8236656]
[1761348426928,66.8909,193.49,193.42,7.5936656]
[1761348427536,66.8909,193.49,193.43,2.8]
[1761348430736,62.24,193.49,193.43,2.8]
[1761348431543,66.8909,193.49,193.43,2.8]
[1761348433434,4.6511,193.48,193.43,2.8]
[1761348439447,62.24,193.49,193.43,2.8]
[1761348440050,66.8909,193.49,193.43,2.8]
[1761348444355,62.24,193.49,193.43,2.8]
[1761348444554,6.44100558,193.57,193.45,4.8236656]
[1761348444754,15.0,193.58,193.48,4.8236656]
[1761348444954,62.24,193.57,193.49,2.8]
[1761348445153,62.24,193.57,193.5,2.8]
[1761348445550,62.24,193.56,193.5,2.8]
[1761348448061,4.6488,193.57,193.5,2.8]
[1761348448252,62.24,193.56,193.5,2.8]
[1761348464057,66.8892,193.56,193.5,2.8]
[1761348466465,4.6498,193.53,193.46,2.73]
[1761348466766,62.22,193.52,193.46,2.73]
[1761348467766,66.8701,193.52,193.46,2.73]
[1761348472464,62.22,193.53,193.46,2.73]
[1761348473266,62.22,193.53,193.47,2.73]
[1761348474166,66.8696,193.54,193.47,2.73]
[1761348474972,66.8696,193.54,193.47,4.6511]
[1761348475165,66.8696,193.54,193.48,2.73]
[1761348480073,66.8496,193.54,193.48,2.73]
[1761348480968,4.6496,193.54,193.48,2.73]
[1761348481175,62.2,193.54,193.49,2.62]
[1761348488180,62.2,193.54,193.49,4.81404928]
[1761348488376,62.2,193.54,193.5,2.65]
[1761348489282,62.2,193.54,193.5,7.46404928]
[1761348489581,62.2,193.54,193.5,4.81404928]
[1761348489787,62.2,193.54,193.51,2.65]
[1761348491595,62.2,193.54,193.5,4.81404928]
[1761348491791,66.8497,193.54,193.49,4.81404928]
[1761348492495,66.8497,193.54,193.48,4.81404928]
[1761348499403,66.8497,193.54,193.48,7.46404928]
[1761348503806,66.8497,193.54,193.48,2.65]
[1761348504503,66.8497,193.54,193.48,7.48912615]
[1761348504707,66.8497,193.54,193.48,2.65]
[1761348505507,66.8497,193.54,193.48,7.48913226]
[1761348507106,62.2,193.54,193.48,7.48913226]
[1761348507306,62.2,193.54,193.49,2.65]
[1761348507307,4.6499,193.53,193.49,2.65]
[1761348513216,4.6499,193.53,193.49,7.48913226]
[1761348513516,4.6499,193.53,193.49,4.83913226]
[1761348513716,4.6499,193.53,193.5,2.65]
[1761348520922,4.6499,193.53,193.5,4.83913226]
[1761348521121,4.6499,193.53,193.51,2.6]
[1761348523320,66.8499,193.53,193.51,2.6]
[1761348525318,171.54425992,193.56,193.51,2.6]
[1761348525524,62.2,193.55,193.51,2.6]
[1761348526225,62.2,193.55,193.52,2.6]
[1761348527025,66.8494,193.55,193.52,2.6]
[1761348527427,66.8494,193.55,193.51,7.43913226]
[1761348529328,66.8494,193.55,193.51,2.6]
[1761348530822,66.8494,193.55,193.5,4.83913226]
[1761348531219,4.6498,193.53,193.5,4.83913226]
[1761348531420,62.2,193.52,193.49,7.43913226]
[1761348535722,66.8502,193.52,193.49,4.83913226]
[1761348536230,66.8502,193.52,193.49,7.43913226]
[1761348536432,66.8502,193.52,193.5,2.6]
[1761348540332,4.6502,193.52,193.5,2.6]
[1761348540531,66.8502,193.52,193.5,2.6]
[1761348541732,66.8502,193.52,193.49,4.83913226]
[1761348541931,66.8502,193.52,193.5,2.85]
[1761348542835,4.6504,193.51,193.49,4.83913226]
[1761348543030,4.6504,193.51,193.47,4.83913226]
[1761348543432,62.2,193.52,193.47,4.83913226]
[1761348544423,4.6509,193.49,193.46,4.83913226]
[1761348544631,4.6509,193.49,193.43,130.72828534]
[1761348544632,62.2,193.48,193.44,7.68913226]
[1761348545632,66.8511,193.48,193.44,7.68913226]
[1761348548533,66.8511,193.48,193.45,2.6]
[1761348555044,4.6511,193.48,193.45,2.6]
[1761348555242,62.2,193.47,193.45,2.6]
[1761348556545,62.2,193.47,193.44,7.43913226]
[1761348556743,62.2,193.47,193.44,4.83913226]
[1761348558147,62.2,193.47,193.43,128.86524126]
[1761348558542,66.8514,193.47,193.43,126.26524126]
[1761348558742,62.2,193.47,193.43,121.426109]
[1761348559946,4.6516,193.46,193.43,121.426109]
[1761348560250,62.2,193.47,193.41,4.83913226]
[1761348560450,62.2,193.47,193.4,2.6]
[1761348561054,4.6521,193.44,193.4,2.6]
[1761348561248,15.0,193.52,193.4,7.43038657]
[1761348561445,62.2,193.48,193.43,2.6]
[1761348562942,62.2,193.48,193.42,4.82816508]
[1761348563148,62.2,193.48,193.41,4.82816508]
[1761348563648,62.2,193.48,193.42,2.6]
[1761348564045,4.6516,193.46,193.42,2.6]
[1761348580356,4.6509,193.49,193.42,2.6]
[1761348580558,4.6509,193.49,193.43,2.6]
[1761348587272,4.6509,193.49,193.44,2.6]
[1761348592475,4.6509,193.49,193.45,2.6]
[1761348601390,4.6509,193.49,193.46,2.86]
[1761348601786,4.81822507,193.57,193.48,4.82816508]
[1761348601992,62.2,193.56,193.49,2.86]
[1761348603085,4.6496,193.54,193.49,2.86]
[1761348607895,4.6491,193.56,193.5,2.61]
[1761348608591,19.6486,193.58,193.5,2.61]
[1761348608791,62.2,193.59,193.51,2.61]
[1761348608991,21.43531764,193.65,193.53,2.61]
[1761348608992,4.6481,193.6,193.53,2.61]
[1761348609595,66.8476,193.62,193.53,2.61]
[1761348609895,66.8476,193.62,193.54,2.61]
[1761348610995,4.6476,193.62,193.54,2.61]
[1761348614801,4.6476,193.62,193.55,2.61]
[1761348635025,4.6476,193.62,193.55,4.6491]
[1761348635324,4.6476,193.62,193.56,2.61]
[1761348641628,4.6471,193.65,193.58,2.72]
[1761348643039,4.6471,193.65,193.59,2.72]
[1761348646933,15.0,193.68,193.56,7.52897367]
[1761348647139,19.80330985,193.68,193.56,2.72]
[1761348648938,4.6477,193.62,193.56,2.72]
[1761348649138,66.8077,193.62,193.56,2.72]
[1761348652332,66.8077,193.62,193.56,7.52897367]
[1761348653639,4.648,193.61,193.56,7.52897367]
[1761348654849,4.648,193.61,193.57,2.72]
[1761348660149,4.648,193.61,193.56,7.62897367]
[1761348661149,4.648,193.61,193.57,2.82]
[1761348666044,62.18,193.6,193.57,2.82]
[1761348667149,66.8282,193.6,193.57,2.82]
[1761348672262,62.18,193.6,193.57,2.82]
[1761348679560,160.41321911,193.62,193.57,2.82]
[1761348679761,62.18,193.61,193.57,2.82]
[1761348681658,62.18,193.61,193.58,2.7]
[1761348682064,62.18,193.61,193.58,4.80897367]
[1761348682255,62.18,193.61,193.59,2.7]
[1761348684758,155.76551911,193.62,193.59,2.7]
[1761348684959,155.76551911,193.62,193.6,2.7]
[1761348688267,62.16,193.64,193.61,2.7]
[1761348688656,1.50260758,193.67,193.61,2.7]
[1761348688861,62.16,193.66,193.61,2.7]
[1761348693661,68.30900758,193.68,193.61,7.50897367]
[1761348694059,68.30900758,193.68,193.62,2.7]
[1761348696074,1.50260758,193.66,193.62,2.7]
[1761348697874,1.50260758,193.67,193.62,2.7]
[1761348700776,66.8064,193.68,193.62,2.7]
[1761348700968,1.50260758,193.67,193.62,2.7]
[1761348708780,63.66260758,193.67,193.62,2.7]
[1761348710688,1.50260758,193.67,193.62,2.7]
[1761348710886,63.66260758,193.67,193.62,2.7]
[1761348715091,63.66260758,193.67,193.62,4.6475]
[1761348715288,63.66260758,193.67,193.63,2.83]
[1761348718801,1.50260758,193.67,193.63,2.83]
[1761348724802,62.14,193.68,193.63,2.83]
[1761348726206,15.72401764,193.76,193.64,2.73]
[1761348726207,1.50260758,193.7,193.64,2.73]
[1761348726902,1.50260758,193.7,193.64,4.80897367]
[1761348727206,1.50260758,193.7,193.66,2.73]
[1761348732611,1.50260758,193.68,193.65,4.6467]
[1761348732811,1.50260758,193.66,193.63,4.83052885]
[1761348733010,1.50260758,193.66,193.62,4.83052885]
[1761348733205,1.50260758,193.66,193.63,2.75]
[1761348734010,63.64260758,193.67,193.63,2.75]
[1761348734217,1.50260758,193.67,193.64,2.75]
[1761348734418,1.50260758,193.67,193.65,2.75]
[1761348739418,62.14,193.68,193.65,2.75]
[1761348739622,1.50260758,193.67,193.65,2.75]
[1761348742014,1.50260758,193.67,193.65,7.58052885]
[1761348742220,1.50260758,193.67,193.66,2.75]
[1761348744330,4.645,193.73,193.66,7.3965]
[1761348744521,1.50260758,193.69,193.67,2.75]
[1761348744718,2.34642482,193.71,193.67,2.75]
[1761348749627,6.99202482,193.71,193.67,2.75]
[1761348749833,6.99202482,193.71,193.64,7.58052885]
[1761348751534,4.6459,193.7,193.64,7.58052885]
[1761348751936,4.6459,193.7,193.65,2.75]
[1761348754339,66.7859,193.7,193.65,2.75]
[1761348757342,4.6459,193.7,193.65,2.75]
[1761348757542,66.7859,193.7,193.65,2.75]
[1761348759948,4.6459,193.7,193.65,2.75]
[1761348760145,66.7859,193.7,193.65,2.75]
[1761348760848,62.14,193.7,193.63,4.83052885]
[1761348761053,2.34642482,193.71,193.63,4.83052885]
[1761348761252,62.14,193.7,193.63,4.83052885]
[1761348761851,62.14,193.7,193.63,7.43052885]
[1761348762053,62.14,193.7,193.61,4.6478]
[1761348762054,4.6463,193.68,193.64,2.6]
[1761348767850,66.7863,193.68,193.64,2.6]
[1761348768258,4.6463,193.68,193.64,2.6]
[1761348768458,66.7863,193.68,193.64,2.6]
[1761348779760,4.6457,193.7,193.64,2.6]
[1761348779965,4.6457,193.7,193.65,4.83052885]
[1761348780163,4.6457,193.7,193.66,2.65]
[1761348791677,66.7857,193.7,193.66,2.65]
[1761348805175,164.05097856,193.71,193.66,7.48231383]
[1761348805376,62.12,193.7,193.67,2.65]
[1761348808892,6.33337532,193.68,193.55,6.45217634]
[1761348809089,1.50114357,193.61,193.56,2.65]
[1761348809391,62.36,193.6,193.56,2.65]
[1761348809583,62.36,193.62,193.56,2.65]
[1761348810994,62.36,193.62,193.56,4.649]
[1761348811188,62.36,193.62,193.57,2.65]
[1761348813794,1.50114357,193.61,193.57,2.65]
[1761348826011,1.50114357,193.61,193.57,7.2986]
[1761348826205,1.50114357,193.61,193.58,2.7]
[1761348829414,1.50114357,193.63,193.58,2.7]
[1761348829715,1.50114357,193.61,193.58,2.7]
[1761348831815,4.6467,193.66,193.58,2.7]
[1761348832109,1.50114357,193.62,193.58,2.7]
[1761348834314,4.6471,193.64,193.54,11.10157634]
[1761348834512,1.50114357,193.59,193.55,2.7]
[1761348835113,1.50114357,193.6,193.57,2.7]
[1761348840921,1.50114357,193.63,193.57,2.7]
[1761348841323,1.50114357,193.65,193.58,2.61]
[1761348842519,4.6462,193.68,193.58,1.50114357]
[1761348842718,1.50114357,193.68,193.6,1.50114357]
[1761348842919,1.50114357,193.68,193.61,2.61]
[1761348843119,6.14684357,193.7,193.63,2.61]
[1761348846227,1.50114357,193.7,193.63,2.61]
[1761348852026,1.50114357,193.7,193.64,2.79]
[1761348867239,62.26,193.69,193.64,2.79]
[1761348871645,62.26,193.69,193.63,4.6472]
[1761348871847,62.26,193.69,193.61,2.79]
[1761348871848,2.34649674,193.68,193.61,2.79]
[1761348872346,2.34649674,193.65,193.61,2.79]
[1761348872645,64.60649674,193.65,193.61,2.79]
[1761348873440,64.60649674,193.65,193.59,2.79]
[1761348874150,2.34649674,193.62,193.56,129.55455354]
[1761348874443,2.34649674,193.62,193.56,124.73254527]
[1761348874444,62.26,193.61,193.56,124.73254527]
[1761348874848,62.26,193.61,193.57,2.79]
[1761348879446,62.26,193.61,193.54,4.82200827]
[1761348879653,2.34649674,193.6,193.53,2.67]
[1761348880043,62.26,193.61,193.53,2.67]
[1761348890251,66.9081,193.61,193.53,2.67]
[1761348892754,66.9081,193.61,193.51,2.67]
[1761348892755,62.26,193.61,193.51,2.67]
[1761348892951,2.34649674,193.6,193.51,2.67]
[1761348893755,4.6485,193.59,193.51,2.67]
[1761348894549,2.34649674,193.57,193.48,2.67]
[1761348896059,4.6493,193.56,193.48,2.67]
[1761348896261,2.34649674,193.57,193.48,2.67]
[1761348896853,2.34649674,193.54,193.47,0.89874872]
[1761348897155,62.34,193.53,193.47,0.89874872]
[1761348897860,4.6502,193.52,193.45,2.67]
[1761348898063,62.34,193.53,193.43,2.8]
[1761348898064,2.34649674,193.51,193.43,2.8]
[1761348899058,4.6508,193.49,193.43,2.8]
[1761348901055,62.36,193.5,193.43,2.8]
[1761348902057,4.6502,193.52,193.43,2.8]
[1761348902256,4.6502,193.52,193.43,7.4521]
[1761348902555,62.36,193.51,193.44,2.8]
[1761348903150,62.36,193.51,193.45,2.8]
[1761348906458,166.34297749,193.54,193.45,2.8]
[1761348906659,62.38,193.53,193.45,2.8]
[1761348908469,166.34297749,193.54,193.45,2.8]
[1761348908662,62.38,193.53,193.45,2.8]
[1761348912365,62.38,193.53,193.43,2.8]
[1761348912575,2.34649674,193.52,193.43,2.8]
[1761348914063,2.34649674,193.52,193.44,2.8]
[1761348914969,62.38,193.51,193.44,2.8]
[1761348915671,62.38,193.5,193.44,2.8]
[1761348915868,62.38,193.5,193.45,2.8]
[1761348918969,2.34649674,193.49,193.42,8.35188511]
[1761348919377,2.34649674,193.48,193.42,8.35188511]
[1761348919778,2.34649674,193.48,193.43,2.8]
[1761348921673,62.38,193.5,193.44,2.8]
[1761348928684,1.50485049,193.49,193.44,2.8]
[1761348930477,63.88485049,193.51,193.45,2.8]
[1761348932181,63.88485049,193.51,193.47,2.8]
[1761348949406,1.50485049,193.53,193.48,2.67]
[1761348950003,221.68668075,193.54,193.47,4.17485049]
[1761348950004,159.34668075,193.54,193.47,4.17485049]
[1761348950203,159.34668075,193.54,193.48,2.67]
[1761348950603,159.34668075,193.54,193.49,4.6505]
[1761348950803,159.34668075,193.54,193.5,2.67]
[1761348951505,159.34668075,193.54,193.5,7.3203]
[1761348951706,159.34668075,193.54,193.51,2.67]
[1761348959721,159.34668075,193.54,193.52,2.72]
[1761348961216,159.34668075,193.54,193.51,2.72]
[1761348971722,159.34668075,193.54,193.51,7.3701]
[1761348972326,159.34668075,193.54,193.52,2.81]
[1761348973122,159.34668075,193.54,193.51,4.6501]
[1761348973831,159.34668075,193.54,193.51,7.4601]
[1761348976332,159.34668075,193.54,193.52,2.81]
[1761348980132,159.34668075,193.54,193.52,7.4598]
[1761348980333,159.34668075,193.54,193.53,2.81]
[1761348980633,1.50485049,193.59,193.53,2.81]
[1761348980926,62.28,193.58,193.53,2.81]
[1761348981133,1.50485049,193.59,193.53,2.81]
[1761348981329,63.78485049,193.59,193.53,2.81]
[1761348982029,63.78485049,193.59,193.53,7.4596]
[1761348982327,63.78485049,193.59,193.54,2.81]
[1761348985538,1.50485049,193.59,193.54,2.81]
[1761348985741,63.78485049,193.59,193.54,2.81]
[1761348987544,1.50485049,193.59,193.55,4.6493]
[1761348987744,1.50485049,193.59,193.56,2.81]
[1761348988846,62.26,193.6,193.56,2.81]
[1761348992346,62.26,193.6,193.56,7.4589]
[1761348992547,2.34852337,193.65,193.57,4.82343764]
[1761348992747,64.60852337,193.65,193.58,2.81]
[1761348993647,2.34852337,193.62,193.57,4.6486]
[1761348995649,2.34852337,193.62,193.55,7.4593]
[1761348995849,2.34852337,193.62,193.55,2.81]
[1761348996956,2.34852337,193.62,193.56,4.6489]
[1761349000265,2.34852337,193.62,193.55,2.81]
[1761349007065,2.34852337,193.62,193.56,2.78]
[1761349012466,4.6475,193.63,193.56,2.78]
[1761349018869,4.6475,193.63,193.57,2.66]
[1761349019070,69.23552337,193.65,193.57,2.66]
[1761349019969,69.23552337,193.65,193.57,7.3087]
[1761349020168,74.06252574,193.65,193.58,2.66]
[1761349021873,69.23552337,193.65,193.58,2.66]
[1761349025670,74.06252574,193.65,193.58,2.66]
[1761349025873,69.23552337,193.65,193.58,2.66]
[1761349033184,74.06252574,193.65,193.58,2.66]
[1761349035087,69.23552337,193.65,193.58,2.66]
[1761349040492,9.47350237,193.67,193.59,2.8]
[1761349040684,62.22,193.66,193.59,2.8]
[1761349041987,62.22,193.66,193.6,4.6479]
[1761349042188,231.65534403,193.66,193.6,7.4479]
[1761349043490,236.30214403,193.66,193.58,12.27272009]
[1761349043885,236.30214403,193.66,193.58,9.47272009]
[1761349044082,236.30214403,193.66,193.59,2.8]
[1761349047690,236.30214403,193.66,193.59,7.4482]
[1761349050692,1.50243368,193.65,193.59,7.4482]
[1761349052093,1.50243368,193.63,193.57,9.47292009]
[1761349052293,62.22,193.62,193.57,12.27292009]
[1761349058497,62.22,193.62,193.58,2.64]
[1761349059104,1.50243368,193.61,193.58,2.64]
[1761349062416,1.50243368,193.61,193.57,7.2887]
[1761349063821,1.50243368,193.59,193.55,4.82422009]
[1761349064016,1.50243368,193.59,193.55,2.64]
[1761349064321,1.50243368,193.56,193.55,2.64]
[1761349072126,1.50243368,193.58,193.55,2.64]
[1761349077832,1.50243368,193.6,193.55,2.64]
[1761349094643,62.22,193.62,193.52,123.59282025]
[1761349094644,1.50243368,193.56,193.52,123.59282025]
[1761349094944,1.50243368,193.56,193.53,2.72]
[1761349099850,1.50243368,193.56,193.52,123.59282025]
[1761349100050,1.50243368,193.54,193.52,123.59282025]
[1761349104754,68.37163368,193.56,193.52,123.59282025]
[1761349105558,68.37163368,193.56,193.52,126.31282025]
[1761349105859,68.37163368,193.56,193.53,2.72]
[1761349106260,6.15163368,193.56,193.53,2.72]
[1761349106558,62.24,193.55,193.53,2.72]
[1761349107056,6.15163368,193.56,193.53,2.72]
[1761349107262,62.24,193.55,193.53,2.72]
[1761349110166,6.15163368,193.56,193.53,2.72]
[1761349110363,62.24,193.55,193.53,2.72]
[1761349114768,62.24,193.55,193.52,123.59282025]
[1761349114972,62.24,193.55,193.52,126.31282025]
[1761349119478,62.24,193.55,193.53,2.6]
[1761349121673,4.6492,193.56,193.53,2.6]
[1761349121978,62.24,193.54,193.53,2.6]
[1761349123983,4.6492,193.56,193.53,2.6]
[1761349124282,62.24,193.55,193.53,2.6]
[1761349138596,62.24,193.54,193.53,2.6]
[1761349146604,62.24,193.54,193.52,123.59282025]
[1761349147898,66.8896,193.54,193.48,4.82422009]
[1761349148196,4.82700237,193.53,193.45,4.82422009]
[1761349148401,4.82700237,193.53,193.45,7.56422009]
[1761349148598,4.6503,193.51,193.45,7.56422009]
[1761349148799,62.24,193.5,193.45,2.74]
[1761349149505,66.8907,193.5,193.45,2.74]
[1761349149803,67.06700237,193.5,193.45,2.74]
[1761349150206,62.24,193.5,193.42,3.63958511]
[1761349150999,4.651,193.48,193.42,3.63958511]
[1761349151204,62.24,193.47,193.43,2.74]
[1761349156396,62.24,193.46,193.43,2.74]
[1761349160004,62.24,193.46,193.42,2.74]
[1761349160212,62.24,193.46,193.41,2.74]
[1761349161802,62.24,193.46,193.42,2.74]
[1761349162008,62.24,193.45,193.42,2.74]
[1761349167614,4.651,193.48,193.42,2.74]
[1761349167916,62.24,193.47,193.42,2.74]
[1761349169514,62.24,193.47,193.41,4.6525]
[1761349170313,62.24,193.47,193.41,7.3925]
[1761349172715,63.74526196,193.47,193.41,7.3925]
[1761349174913,63.74526196,193.47,193.41,2.74]
[1761349175122,1.50526196,193.45,193.39,0.89978281]
[1761349176819,1.50526196,193.45,193.39,3.63978281]
[1761349178015,1.50526196,193.47,193.4,2.8]
[1761349178215,1.50526196,193.45,193.4,2.8]
[1761349178409,1.50526196,193.43,193.37,2.8]
[1761349179223,6.15746196,193.43,193.37,2.8]
[1761349181318,4.6529,193.4,193.34,3.69991078]
[1761349181626,68.47816196,193.4,193.35,2.8]
[1761349181823,66.9729,193.4,193.35,2.8]
[1761349185921,62.32,193.4,193.35,2.8]
[1761349186320,62.32,193.4,193.37,2.8]
[1761349192731,4.6524,193.43,193.37,2.8]
[1761349192924,62.32,193.42,193.37,2.8]
[1761349194429,63.82526196,193.42,193.37,2.8]
[1761349200841,4.6524,193.43,193.37,2.8]
[1761349201026,62.32,193.42,193.37,2.8]
[1761349206246,63.82526196,193.42,193.37,2.8]
[1761349206440,68.47786196,193.42,193.35,2.78]
[1761349210851,66.9726,193.42,193.35,2.78]
[1761349211453,62.3,193.41,193.36,2.67]
[1761349215753,62.3,193.41,193.36,1.50526196]
[1761349215954,62.3,193.41,193.37,2.67]
[1761349222768,66.9528,193.41,193.34,2.40517274]
[1761349223156,66.9528,193.41,193.34,5.07517274]
[1761349225965,4.6531,193.4,193.32,2.67]
[1761349226164,4.6531,193.4,193.32,4.17526196]
[1761349226672,4.6533,193.39,193.32,2.67]
[1761349226873,131.72552547,193.39,193.32,2.67]
[1761349227571,4.6535,193.38,193.31,5.55510863]
[1761349227871,62.3,193.37,193.31,5.55510863]
[1761349230257,62.3,193.37,193.31,0.90010863]
[1761349230464,66.9538,193.37,193.31,0.90010863]
[1761349230866,66.9538,193.37,193.3,4.17526196]
[1761349231070,4.654,193.36,193.3,4.17526196]
[1761349232762,4.654,193.36,193.3,2.67]
[1761349233568,62.3,193.35,193.3,2.67]
[1761349238571,62.3,193.35,193.31,2.87]
[1761349261388,131.72542547,193.39,193.31,2.87]
[1761349261683,62.3,193.38,193.32,2.82]
[1761349262680,62.3,193.37,193.32,2.82]
[1761349266998,62.3,193.36,193.32,2.82]
[1761349275119,62.3,193.36,193.33,2.68]
[1761349276010,131.88980855,193.39,193.34,2.68]
[1761349276011,127.07222547,193.39,193.34,2.68]
[1761349276314,189.37222547,193.39,193.34,2.68]
[1761349277111,189.37222547,193.39,193.34,7.3341]
[1761349277415,189.37222547,193.39,193.35,2.68]
[1761349280310,189.37222547,193.39,193.35,7.3339]
[1761349280516,189.35222547,193.39,193.36,2.68]
[1761349312535,127.07222547,193.39,193.36,2.68]
[1761349312837,127.07222547,193.39,193.35,8.86977737]
[1761349317848,127.07222547,193.39,193.35,7.3639]
[1761349322243,189.33222547,193.39,193.35,7.3639]
[1761349339666,189.33222547,193.39,193.36,4.6537]
[1761349342568,127.07222547,193.39,193.36,4.6537]
[1761349342867,189.33222547,193.39,193.37,2.66]
[1761349343069,189.33222547,193.39,193.36,4.6537]
[1761349347083,62.26,193.39,193.36,4.6537]
[1761349377002,62.26,193.39,193.34,4.6543]
[1761349377200,62.26,193.39,193.31,188.13286258]
[1761349377394,7.17076228,193.38,193.27,9.24922996]
[1761349377600,7.17076228,193.38,193.28,3.62027163]
[1761349378506,4.6537,193.37,193.29,4.6553]
[1761349382604,62.26,193.36,193.29,4.6553]
[1761349387311,62.26,193.35,193.29,4.6553]
[1761349391514,62.26,193.35,193.3,2.69]
[1761349394017,4.6537,193.37,193.3,2.69]
[1761349394218,62.26,193.36,193.3,2.69]
[1761349397018,62.26,193.36,193.31,4.6549]
[1761349397223,62.26,193.36,193.32,2.69]
[1761349408122,62.26,193.36,193.31,4.6549]
[1761349411233,62.26,193.36,193.31,7.3449]
[1761349414129,4.6534,193.38,193.31,4.6549]
[1761349414431,62.26,193.37,193.31,7.3449]
[1761349414832,63.76667782,193.37,193.31,7.3449]
[1761349428353,1.50667782,193.35,193.31,4.6549]
[1761349428561,1.50667782,193.35,193.29,4.6554]
[1761349434563,1.50667782,193.35,193.29,7.3754]
[1761349436561,1.50667782,193.35,193.3,2.72]
[1761349437657,1.50667782,193.35,193.28,0.90027163]
[1761349437658,6.16087782,193.35,193.28,0.90027163]
[1761349437864,1.50667782,193.33,193.28,0.90027163]
[1761349438064,1.50667782,193.33,193.29,2.61]
[1761349439365,1.50667782,193.33,193.28,0.90027163]
[1761349440070,1.50667782,193.33,193.29,2.61]
[1761349443871,4.6545,193.34,193.29,2.61]
[1761349452573,1.50667782,193.35,193.29,2.61]